fUSD/lending_fUSD_20250109
["ID","MTS","AMOUNT","RATE_DAILY","PERIOD"]
[348265123,1736425852097,-500.0,0.00010815,2]
[348265124,1736425852107,-168.81051035,0.00010815,2]
[348265125,1736425852117,-500.0,0.00010815,2]
[348265126,1736425852127,-304.35,0.00010815,2]
[348265127,1736425852137,-500.0,0.00010815,2]
[348265128,1736425852147,-500.0,0.00010815,2]
[348265129,1736425852156,-500.0,0.00010815,2]
[348265130,1736425852166,-500.0,0.00010815,2]
[348265131,1736425852176,-3092.909525,0.00010815,2]
[348265132,1736425852186,-500.0,0.00010815,2]
[348265133,1736425852196,-500.0,0.00010815,2]
[348265134,1736425852206,-357.54783271,0.00010815,2]
[348265135,1736425852216,-500.0,0.00010815,2]
[348265136,1736425852226,-627.55,0.00010815,2]
[348265137,1736425852237,-500.0,0.00010815,2]
[348265138,1736425852247,-500.0,0.00010815,2]
[348265139,1736425852258,-614.88,0.00010815,2]
[348265140,1736425852268,-500.0,0.00010815,2]
[348265141,1736425852277,-500.0,0.00010815,2]
[348265142,1736425852286,-500.0,0.00010815,2]
[348265143,1736425852296,-500.0,0.00010815,2]
[348265144,1736425852306,-500.0,0.00010815,2]
[348265145,1736425852317,-500.0,0.00010815,2]
[348265146,1736425852327,-500.0,0.00010815,2]
[348265147,1736425852337,-500.0,0.00010815,2]
[348265148,1736425852347,-500.0,0.00010815,2]
[348265149,1736425852357,-500.0,0.00010815,2]
[348265150,1736425852367,-500.0,0.00010815,2]
[348265151,1736425852376,-451.63202176,0.00010815,2]
[348265152,1736425852386,-500.0,0.00010815,2]
[348265153,1736425852396,-500.0,0.00010815,2]
[348265154,1736425852406,-502.48471947,0.00010815,2]
[348265155,1736425852416,-500.0,0.00010815,2]
[348265156,1736425852426,-500.0,0.00010815,2]
[348265157,1736425852435,-500.0,0.00010815,2]
[348265158,1736425852446,-500.0,0.00010815,2]
[348265159,1736425852456,-500.0,0.00010815,2]
[348265160,1736425852466,-244.03533649,0.00010815,2]
[348265161,1736425852477,-500.0,0.00010815,2]
[348265162,1736425852487,-500.0,0.00010815,2]
[348265163,1736425852497,-1451.29,0.00010815,2]
[348265164,1736425852509,-500.0,0.00010815,2]
[348265165,1736425852519,-500.0,0.00010815,2]
[348265166,1736425852528,-500.0,0.00010815,2]
[348265167,1736425852539,-500.0,0.00010815,2]
[348265168,1736425852549,-374.19,0.00010815,2]
[348265169,1736425852558,-500.0,0.00010815,2]
[348265170,1736425852569,-500.0,0.00010815,2]
[348265171,1736425852581,-500.0,0.00010815,2]
[348265172,1736425852591,-500.0,0.00010815,2]
[348265173,1736425852601,-500.0,0.00010815,2]
[348265174,1736425852612,-500.0,0.00010815,2]
[348265175,1736425852623,-500.0,0.00010815,2]
[348265176,1736425852632,-500.0,0.00010815,2]
[348265177,1736425852642,-500.0,0.00010815,2]
[348265178,1736425852652,-500.0,0.00010815,2]
[348265179,1736425852662,-500.0,0.00010815,2]
[348265180,1736425852673,-500.0,0.00010815,2]
[348265181,1736425852683,-500.0,0.00010815,2]
[348265182,1736425852692,-500.0,0.00010815,2]
[348265183,1736425852704,-500.0,0.00010815,2]
[348265184,1736425852713,-500.0,0.00010815,2]
[348265185,1736425852723,-500.0,0.00010815,2]
[348265186,1736425852733,-500.0,0.00010815,2]
[348265187,1736425852744,-500.0,0.00010815,2]
[348265188,1736425852755,-500.0,0.00010815,2]
[348265189,1736425852766,-500.0,0.00010815,2]
[348265190,1736425852777,-500.0,0.00010815,2]
[348265191,1736425852787,-500.0,0.00010815,2]
[348265192,1736425852797,-546.21,0.00010815,2]
[348265193,1736425852808,-500.0,0.00010815,2]
[348265194,1736425852818,-500.0,0.00010815,2]
[348265195,1736425852992,-500.0,0.00010815,2]
[348265196,1736425853002,-500.0,0.00010815,2]
[348265197,1736425853013,-500.0,0.00010815,2]
[348265198,1736425853022,-500.0,0.00010815,2]
[348265199,1736425853032,-731.91,0.00010815,2]
[348265200,1736425853041,-500.0,0.00010815,2]
[348265201,1736425853051,-500.0,0.00010815,2]
[348265202,1736425853060,-500.0,0.00010815,2]
[348265203,1736425853070,-500.0,0.00010815,2]
[348265204,1736425853079,-929.61,0.00010815,2]
[348265205,1736425853089,-500.0,0.00010815,2]
[348265206,1736425853098,-500.0,0.00010815,2]
[348265207,1736425853108,-500.0,0.00010815,2]
[348265208,1736425853117,-500.0,0.00010815,2]
[348265209,1736425853126,-260.39,0.00010815,2]
[348265210,1736425853136,-500.0,0.00010815,2]
[348265211,1736425853145,-2453.77,0.00010815,2]
[348265212,1736425853155,-500.0,0.00010815,2]
[348265213,1736425853164,-451.94,0.00010815,2]
[348265214,1736425853174,-500.0,0.00010815,2]
[348265215,1736425853183,-285.16,0.00010815,2]
[348265216,1736425853192,-500.0,0.00010815,2]
[348265217,1736425853201,-500.0,0.00010815,2]
[348265218,1736425853211,-500.0,0.00010815,2]
[348265219,1736425853220,-507.41721159,0.00010815,2]
[348265220,1736425853230,-315.78,0.00010815,2]
[348265221,1736425853240,-500.0,0.00010815,2]
[348265222,1736425853249,-214.81,0.00010815,2]
[348265223,1736425853259,-500.0,0.00010815,2]
[348265224,1736425853269,-500.0,0.00010815,2]
[348265225,1736425853279,-500.0,0.00010815,2]
[348265226,1736425853288,-598.91,0.00010815,2]
[348265227,1736425853297,-211.8,0.00010815,2]
[348265228,1736425853306,-500.0,0.00010815,2]
[348265229,1736425853315,-500.0,0.00010815,2]
[348265230,1736425853324,-500.0,0.00010815,2]
[348265231,1736425853333,-500.0,0.00010815,2]
[348265232,1736425853343,-500.0,0.00010815,2]
[348265233,1736425853353,-500.0,0.00010815,2]
[348265234,1736425853363,-1196.49,0.00010815,2]
[348265235,1736425853372,-500.0,0.00010815,2]
[348265236,1736425853382,-628.31,0.00010815,2]
[348265237,1736425853392,-500.0,0.00010815,2]
[348265238,1736425853402,-500.0,0.00010815,2]
[348265239,1736425853412,-500.0,0.00010815,2]
[348265240,1736425853422,-500.0,0.00010815,2]
[348265241,1736425853432,-500.0,0.00010815,2]
[348265242,1736425853441,-500.0,0.00010815,2]
[348265243,1736425853451,-500.0,0.00010815,2]
[348265244,1736425853461,-500.0,0.00010815,2]
[348265245,1736425853472,-500.0,0.00010815,2]
[348265246,1736425853482,-500.0,0.00010815,2]
[348265247,1736425853492,-500.0,0.00010815,2]
[348265248,1736425853502,-330.18,0.00010815,2]
[348265249,1736425853512,-501.46,0.00010815,2]
[348265250,1736425853522,-500.0,0.00010815,2]
[348265251,1736425853531,-500.0,0.00010815,2]
[348265252,1736425853540,-500.0,0.00010815,2]
[348265253,1736425853550,-500.0,0.00010815,2]
[348265254,1736425853560,-624.76,0.00010815,2]
[348265255,1736425853569,-500.0,0.00010815,2]
[348265256,1736425853582,-500.0,0.00010815,2]
[348265257,1736425853591,-500.0,0.00010815,2]
[348265258,1736425853600,-187.13754736,0.00010815,2]
[348265259,1736425853610,-500.0,0.00010815,2]
[348265260,1736425853621,-500.0,0.00010815,2]
[348265261,1736425853630,-500.0,0.00010815,2]
[348265262,1736425853640,-500.0,0.00010815,2]
[348265263,1736425853651,-500.0,0.00010815,2]
[348265264,1736425853660,-193.36,0.00010815,2]
[348265265,1736425853670,-500.0,0.00010815,2]
[348265266,1736425853679,-500.0,0.00010815,2]
[348265267,1736425853689,-500.0,0.00010815,2]
[348265268,1736425853698,-500.0,0.00010815,2]
[348265269,1736425853708,-500.0,0.00010815,2]
[348265270,1736425853718,-500.0,0.00010815,2]
[348265271,1736425853727,-500.0,0.00010815,2]
[348265272,1736425853737,-500.0,0.00010815,2]
[348265273,1736425853746,-500.0,0.00010815,2]
[348265274,1736425853756,-500.0,0.00010815,2]
[348265275,1736425853766,-500.0,0.00010815,2]
[348265276,1736425853775,-500.0,0.00010815,2]
[348265277,1736425853785,-500.0,0.00010815,2]
[348265278,1736425853794,-500.0,0.00010815,2]
[348265279,1736425853803,-500.0,0.00010815,2]
[348265280,1736425853813,-500.0,0.00010815,2]
[348265281,1736425853823,-500.0,0.00010815,2]
[348265282,1736425853832,-500.0,0.00010815,2]
[348265283,1736425853842,-500.0,0.00010815,2]
[348265284,1736425853852,-500.0,0.00010815,2]
[348265285,1736425853861,-500.0,0.00010815,2]
[348265286,1736425853871,-646.53,0.00010815,2]
[348265287,1736425853880,-500.0,0.00010815,2]
[348265288,1736425853889,-500.0,0.00010815,2]
[348265289,1736425853899,-500.0,0.00010815,2]
[348265290,1736425853908,-470.2523349,0.00010815,2]
[348265291,1736425853918,-500.0,0.00010815,2]
[348265292,1736425853927,-500.0,0.00010815,2]
[348265293,1736425853936,-445.37345399,0.00010815,2]
[348265294,1736425853946,-500.0,0.00010815,2]
[348265295,1736425853955,-200.91,0.00010815,2]
[348265296,1736425853965,-500.0,0.00010815,2]
[348265297,1736425853974,-506.41782005,0.00010815,2]
[348265298,1736425853984,-500.0,0.00010815,2]
[348265299,1736425853993,-506.53077174,0.00010815,2]
[348265300,1736425854003,-500.0,0.00010815,2]
[348265301,1736425854012,-634.72,0.00010815,2]
[348265302,1736425854022,-626.49,0.00010815,2]
[348265303,1736425854031,-1001.89,0.00010815,2]
[348265304,1736425854041,-500.0,0.00010815,2]
[348265305,1736425854051,-500.0,0.00010815,2]
[348265306,1736425854060,-500.0,0.00010815,2]
[348265307,1736425854070,-500.0,0.00010815,2]
[348265308,1736425854079,-360.05,0.00010815,2]
[348265309,1736425854088,-500.0,0.00010815,2]
[348265310,1736425854098,-500.0,0.00010815,2]
[348265311,1736425854108,-500.0,0.00010815,2]
[348265312,1736425854117,-500.0,0.00010815,2]
[348265313,1736425854127,-503.57075237,0.00010815,2]
[348265314,1736425854136,-500.0,0.00010815,2]
[348265315,1736425854146,-500.0,0.00010815,2]
[348265316,1736425854155,-1230.16,0.00010815,2]
[348265317,1736425854164,-500.0,0.00010815,2]
[348265318,1736425854174,-500.0,0.00010815,2]
[348265319,1736425854183,-500.0,0.00010815,2]
[348265320,1736425854192,-500.0,0.00010815,2]
[348265321,1736425854201,-500.0,0.00010816,2]
[348265322,1736425854211,-500.0,0.00010816,2]
[348265323,1736425854220,-500.0,0.00010816,2]
[348265324,1736425854229,-500.0,0.00010816,2]
[348265325,1736425854239,-500.0,0.00010816,2]
[348265326,1736425854248,-507.51837772,0.00010816,2]
[348265327,1736425854258,-529.41,0.00010816,2]
[348265328,1736425854267,-500.0,0.00010816,2]
[348265329,1736425854276,-500.0,0.00010816,2]
[348265330,1736425854285,-3296.81,0.00010816,2]
[348265331,1736425854295,-502.81916589,0.00010816,2]
[348265332,1736425854304,-500.0,0.00010816,2]
[348265333,1736425854314,-505.00396231,0.00010816,2]
[348265334,1736425854323,-500.0,0.00010816,2]
[348265335,1736425854332,-500.0,0.00010816,2]
[348265336,1736425854342,-586.67,0.00010816,2]
[348265337,1736425854351,-500.0,0.00010816,2]
[348265338,1736425854361,-503.76280648,0.00010816,2]
[348265339,1736425854370,-500.0,0.00010816,2]
[348265340,1736425854379,-500.0,0.00010816,2]
[348265341,1736425854389,-537.3,0.00010816,2]
[348265342,1736425854398,-500.0,0.00010816,2]
[348265343,1736425854408,-506.33220225,0.00010816,2]
[348265344,1736425854417,-506.36300228,0.00010816,2]
[348265345,1736425854427,-500.0,0.00010816,2]
[348265346,1736425854437,-1343.75,0.00010816,2]
[348265347,1736425854446,-401.69003863,0.00010816,2]
[348265348,1736425854456,-526.9,0.00010816,2]
[348265349,1736425854465,-500.0,0.00010816,2]
[348265350,1736425854474,-504.09009057,0.00010816,2]
[348265351,1736425854484,-564.14,0.00010816,2]
[348265352,1736425854494,-556.57,0.00010816,2]
[348265353,1736425854503,-510.01309691,0.00010816,2]
[348265354,1736425854513,-1503.21,0.00010816,2]
[348265355,1736425854523,-500.0,0.00010816,2]
[348265356,1736425854532,-500.0,0.00010816,2]
[348265357,1736425854543,-216.49,0.00010816,2]
[348265358,1736425854552,-573.07386927,0.00010816,2]
[348265359,1736425854562,-208.16,0.00010816,2]
[348265360,1736425854571,-500.0,0.00010816,2]
[348265361,1736425854583,-500.0,0.00010816,2]
[348265362,1736425854592,-448.98,0.00010816,2]
[348265363,1736425854602,-158.15,0.00010816,2]
[348265364,1736425854612,-500.0,0.00010816,2]
[348265365,1736425854623,-623.49,0.00010816,2]
[348265366,1736425854633,-500.0,0.00010816,2]
[348265367,1736425854643,-500.0,0.00010816,2]
[348265368,1736425854656,-500.0,0.00010816,2]
[348265369,1736425854665,-286.34,0.00010816,2]
[348265370,1736425854675,-252.92,0.00010816,2]
[348265371,1736425854686,-607.47,0.00010816,2]
[348265372,1736425854695,-500.0,0.00010816,2]
[348265373,1736425854705,-401.4,0.00010816,2]
[348265374,1736425854714,-500.0,0.00010816,2]
[348265375,1736425854723,-500.0,0.00010816,2]
[348265376,1736425854733,-500.0,0.00010816,2]
[348265377,1736425854743,-640.22,0.00010816,2]
[348265378,1736425854753,-500.0,0.00010816,2]
[348265379,1736425854763,-305.42,0.00010816,2]
[348265380,1736425854772,-500.0,0.00010816,2]
[348265381,1736425854782,-500.0,0.00010816,2]
[348265382,1736425854791,-500.0,0.00010816,2]
[348265383,1736425854801,-500.0,0.00010816,2]
[348265384,1736425854811,-557.9,0.00010816,2]
[348265385,1736425854820,-719.7,0.00010816,2]
[348265386,1736425854829,-500.0,0.00010816,2]
[348265387,1736425854839,-500.0,0.00010816,2]
[348265388,1736425854848,-500.0,0.00010816,2]
[348265389,1736425854858,-957.74,0.00010816,2]
[348265390,1736425854867,-500.0,0.00010816,2]
[348265391,1736425854877,-500.0,0.00010816,2]
[348265392,1736425854887,-500.0,0.00010816,2]
[348265393,1736425854896,-500.0,0.00010816,2]
[348265394,1736425854905,-500.0,0.00010816,2]
[348265395,1736425854914,-819.32,0.00010816,2]
[348265396,1736425854923,-262.48,0.00010816,2]
[348265397,1736425854933,-2787.96,0.00010816,2]
[348265398,1736425854943,-500.0,0.00010816,2]
[348265399,1736425854952,-500.0,0.00010816,2]
[348265400,1736425854963,-500.0,0.00010816,2]
[348265401,1736425854974,-500.0,0.00010816,2]
[348265402,1736425854983,-500.0,0.00010817,2]
[348265403,1736425854992,-276.97,0.00010817,2]
[348265404,1736425855002,-500.0,0.00010817,2]
[348265405,1736425855012,-500.0,0.00010821,2]
[348265406,1736425855022,-500.0,0.00010821,2]
[348265407,1736425855031,-500.0,0.00010821,2]
[348265408,1736425855041,-605.39,0.00010821,2]
[348265409,1736425855050,-500.0,0.00010821,2]
[348265410,1736425855060,-500.0,0.00010821,2]
[348265411,1736425855069,-500.0,0.00010821,2]
[348265412,1736425855079,-813.79,0.00010821,2]
[348265413,1736425855089,-500.0,0.00010821,2]
[348265414,1736425855099,-500.0,0.00010821,2]
[348265415,1736425855109,-419.87080554,0.00010821,2]
[348265416,1736425855119,-500.0,0.00010821,2]
[348265417,1736425855130,-532.95,0.00010821,2]
[348265418,1736425855140,-500.0,0.00010821,2]
[348265419,1736425855150,-558.87,0.00010821,2]
[348265420,1736425855159,-215.70268667,0.000109,2]
[348265421,1736425855169,-150.0,0.00010959,2]
[348265422,1736425855179,-500.0,0.00010986,2]
[348265423,1736425855188,-255.0,0.00010992,2]
[348265424,1736425855197,-23184.78271428,0.00011,2]
[348265425,1736425855206,-550.0,0.00011,2]
[348265426,1736425855216,-150.0,0.00011047,2]
[348265427,1736425855226,-150.0,0.00011047,2]
[348265428,1736425855237,-150.0,0.00011047,2]
[348265429,1736425855246,-537.19443891,0.0001105,2]
[348265430,1736425855257,-156.43390287,0.00011089,2]
[348265431,1736425855267,-601.63,0.00011089,2]
[348265432,1736425855277,-508.08364678,0.00011089,2]
[348265433,1736425855286,-500.0,0.00011089,2]
[348265434,1736425855296,-532.34,0.00011089,2]
[348265435,1736425855306,-503.52965271,0.00011089,2]
[348265436,1736425855317,-500.0,0.00011089,2]
[348265437,1736425855326,-526.34382136,0.00011089,2]
[348265438,1736425855337,-575.23,0.00011089,2]
[348265439,1736425855347,-500.0,0.00011089,2]
[348265440,1736425855358,-507.39464134,0.00011089,2]
[348265441,1736425855368,-615.6832484,0.00011089,2]
[348265442,1736425855378,-604.27489655,0.00011089,2]
[348265443,1736425855389,-543.36201233,0.00011089,2]
[348265444,1736425855399,-506.05994264,0.00011089,2]
[348265445,1736425855409,-308.10149026,0.00011089,2]
[348265446,1736425855419,-508.40949347,0.00011089,2]
[348265447,1736425855428,-389.43578497,0.00011089,2]
[348265448,1736425855437,-504.57,0.00011089,2]
[348265449,1736425855447,-614.44,0.00011089,2]
[348265450,1736425855457,-396.9,0.00011089,2]
[348265451,1736425855468,-500.0,0.00011089,2]
[348265452,1736425855477,-500.0,0.00011089,2]
[348265453,1736425855486,-504.3005353,0.00011089,2]
[348265454,1736425855496,-500.0,0.00011089,2]
[348265455,1736425855507,-502.89857352,0.00011089,2]
[348265456,1736425855518,-500.0,0.00011089,2]
[348265457,1736425855528,-467.88063816,0.00011089,2]
[348265458,1736425855537,-504.48110677,0.00011089,2]
[348265459,1736425855548,-504.12417592,0.00011089,2]
[348265460,1736425855558,-500.0,0.00011089,2]
[348265461,1736425855568,-508.05654861,0.00011089,2]
[348265462,1736425855580,-507.56550745,0.00011089,2]
[348265463,1736425855589,-168.83556566,0.00011089,2]
[348265464,1736425855599,-502.65969672,0.00011089,2]
[348265465,1736425855609,-500.0,0.00011089,2]
[348265466,1736425855619,-502.94975814,0.00011089,2]
[348265467,1736425855628,-936.88,0.00011089,2]
[348265468,1736425855638,-568.26,0.00011089,2]
[348265469,1736425855648,-508.52471692,0.00011089,2]
[348265470,1736425855659,-512.54326621,0.00011089,2]
[348265471,1736425855669,-506.0018292,0.00011089,2]
[348265472,1736425855679,-506.18643359,0.00011089,2]
[348265473,1736425855688,-507.06933765,0.00011089,2]
[348265474,1736425855697,-191.69328418,0.00011089,2]
[348265475,1736425855707,-422.65916668,0.00011089,2]
[348265476,1736425855716,-405.01,0.00011089,2]
[348265477,1736425855726,-613.57045699,0.00011089,2]
[348265478,1736425855736,-500.0,0.00011089,2]
[348265479,1736425855746,-279.22,0.00011089,2]
[348265480,1736425855757,-500.0,0.00011089,2]
[348265481,1736425855767,-503.6079046,0.00011089,2]
[348265482,1736425855776,-638.02,0.00011089,2]
[348265483,1736425855786,-500.0,0.00011089,2]
[348265484,1736425855796,-1451.29,0.00011089,2]
[348265485,1736425855805,-635.08,0.00011089,2]
[348265486,1736425855815,-500.02,0.00011089,2]
[348265487,1736425855824,-506.26062872,0.00011089,2]
[348265488,1736425855834,-502.38613988,0.00011089,2]
[348265489,1736425855844,-503.44402595,0.00011089,2]
[348265490,1736425855853,-549.59363587,0.00011089,2]
[348265491,1736425855862,-519.77901482,0.00011089,2]
[348265492,1736425855872,-602.85737945,0.00011089,2]
[348265493,1736425855881,-500.0,0.00011089,2]
[348265494,1736425855891,-503.16327323,0.00011089,2]
[348265495,1736425855900,-500.0,0.00011089,2]
[348265496,1736425855908,-500.0,0.00011089,2]
[348265497,1736425855918,-500.0,0.00011089,2]
[348265498,1736425855927,-500.0,0.00011089,2]
[348265499,1736425855937,-507.70108311,0.00011089,2]
[348265500,1736425855947,-505.91384678,0.00011089,2]
[348265501,1736425855956,-731.91,0.00011089,2]
[348265502,1736425855966,-500.0,0.00011089,2]
[348265503,1736425855976,-929.61,0.00011089,2]
[348265504,1736425855986,-500.0,0.00011089,2]
[348265505,1736425855995,-500.0,0.00011089,2]
[348265506,1736425856006,-2453.77,0.00011089,2]
[348265507,1736425856016,-505.72649403,0.00011089,2]
[348265508,1736425856025,-500.0,0.00011089,2]
[348265509,1736425856035,-530.31,0.00011089,2]
[348265510,1736425856043,-500.0,0.00011089,2]
[348265511,1736425856054,-581.98,0.00011089,2]
[348265512,1736425856063,-500.0,0.00011089,2]
[348265513,1736425856073,-500.0,0.00011089,2]
[348265514,1736425856082,-598.91,0.00011089,2]
[348265515,1736425856092,-500.0,0.00011089,2]
[348265516,1736425856102,-515.52413547,0.00011089,2]
[348265517,1736425856112,-506.64911061,0.00011089,2]
[348265518,1736425856122,-511.34683042,0.00011089,2]
[348265519,1736425856132,-1196.49,0.00011089,2]
[348265520,1736425856141,-628.31,0.00011089,2]
[348265521,1736425856151,-500.0,0.00011089,2]
[348265522,1736425856160,-500.0,0.00011089,2]
[348265523,1736425856169,-279.30570183,0.00011089,2]
[348265524,1736425856179,-500.0,0.00011089,2]
[348265525,1736425856189,-500.0,0.00011089,2]
[348265526,1736425856198,-507.90490884,0.00011089,2]
[348265527,1736425856208,-500.0,0.00011089,2]
[348265528,1736425856217,-505.18478855,0.00011089,2]
[348265529,1736425856227,-352.74954582,0.00011089,2]
[348265530,1736425856237,-500.0,0.00011089,2]
[348265531,1736425856247,-500.0,0.00011089,2]
[348265532,1736425856257,-624.76,0.00011089,2]
[348265533,1736425856267,-500.0,0.00011089,2]
[348265534,1736425856276,-500.0,0.00011089,2]
[348265535,1736425856286,-608.58658251,0.00011089,2]
[348265536,1736425856295,-500.0,0.00011089,2]
[348265537,1736425856304,-500.0,0.00011089,2]
[348265538,1736425856314,-507.12431399,0.00011089,2]
[348265539,1736425856323,-510.96573729,0.00011089,2]
[348265540,1736425856332,-552.76,0.00011089,2]
[348265541,1736425856500,-500.0,0.00011089,2]
[348265542,1736425856510,-500.0,0.00011089,2]
[348265543,1736425856520,-500.0,0.00011089,2]
[348265544,1736425856529,-500.0,0.00011089,2]
[348265545,1736425856539,-208.87,0.00011089,2]
[348265546,1736425856549,-500.0,0.00011089,2]
[348265547,1736425856558,-646.53,0.00011089,2]
[348265548,1736425856568,-227.95,0.00011089,2]
[348265549,1736425856581,-527.87,0.00011089,2]
[348265550,1736425856590,-508.16734748,0.00011089,2]
[348265551,1736425856599,-626.49,0.00011089,2]
[348265552,1736425856609,-500.0,0.00011089,2]
[348265553,1736425856618,-1001.89,0.00011089,2]
[348265554,1736425856628,-500.0,0.00011089,2]
[348265555,1736425856638,-1230.16,0.00011089,2]
[348265556,1736425856647,-512.84176081,0.00011089,2]
[348265557,1736425856658,-537.3,0.0001109,2]
[348265558,1736425856667,-1343.75,0.0001109,2]
[348265559,1736425856677,-564.14,0.0001109,2]
[348265560,1736425856685,-1503.21,0.0001109,2]
[348265561,1736425856694,-192.89,0.0001109,2]
[348265562,1736425856703,-286.71,0.0001109,2]
[348265563,1736425856712,-614.54,0.0001109,2]
[348265564,1736425856721,-500.0,0.0001109,2]
[348265565,1736425856731,-500.0,0.0001109,2]
[348265566,1736425856740,-168.35,0.0001109,2]
[348265567,1736425856750,-500.0,0.0001109,2]
[348265568,1736425856760,-601.1,0.0001109,2]
[348265569,1736425856770,-607.47,0.0001109,2]
[348265570,1736425856779,-569.4,0.0001109,2]
[348265571,1736425856788,-500.0,0.0001109,2]
[348265572,1736425856799,-301.32,0.0001109,2]
[348265573,1736425856808,-500.0,0.0001109,2]
[348265574,1736425856818,-500.0,0.0001109,2]
[348265575,1736425856827,-500.0,0.0001109,2]
[348265576,1736425856836,-500.0,0.0001109,2]
[348265577,1736425856845,-335.84,0.0001109,2]
[348265578,1736425856855,-500.0,0.0001109,2]
[348265579,1736425856864,-719.7,0.0001109,2]
[348265580,1736425856873,-500.0,0.0001109,2]
[348265581,1736425856882,-260.29,0.0001109,2]
[348265582,1736425856891,-500.0,0.0001109,2]
[348265583,1736425856901,-957.74,0.0001109,2]
[348265584,1736425856910,-500.0,0.0001109,2]
[348265585,1736425856920,-500.0,0.0001109,2]
[348265586,1736425856929,-500.0,0.0001109,2]
[348265587,1736425856939,-500.0,0.0001109,2]
[348265588,1736425856949,-500.0,0.0001109,2]
[348265589,1736425856958,-819.32,0.0001109,2]
[348265590,1736425856968,-500.0,0.0001109,2]
[348265591,1736425856977,-2787.96,0.0001109,2]
[348265592,1736425856987,-500.0,0.0001109,2]
[348265593,1736425856997,-500.0,0.0001109,2]
[348265594,1736425857007,-500.0,0.0001109,2]
[348265595,1736425857018,-526.2,0.00011091,2]
[348265596,1736425857028,-500.0,0.00011091,2]
[348265597,1736425857038,-647.37,0.00011095,2]
[348265598,1736425857047,-500.0,0.00011095,2]
[348265599,1736425857057,-500.0,0.00011095,2]
[348265600,1736425857067,-605.39,0.00011095,2]
[348265601,1736425857077,-500.0,0.00011095,2]
[348265602,1736425857088,-500.0,0.00011095,2]
[348265603,1736425857098,-500.0,0.00011095,2]
[348265604,1736425857108,-813.79,0.00011095,2]
[348265605,1736425857118,-500.0,0.00011095,2]
[348265606,1736425857128,-500.0,0.00011095,2]
[348265607,1736425857138,-532.95,0.00011095,2]
[348265608,1736425857147,-500.0,0.00011095,2]
[348265609,1736425857157,-558.87,0.00011095,2]
[348265610,1736425857166,-215.70268658,0.000111,2]
[348265611,1736425857176,-132815.42782884,0.00011169,2]
[348265612,1736425857185,-500.0,0.00011171,2]
[348265613,1736425857194,-2545.584,0.0001123,2]
[348265614,1736425857204,-3895.0,0.0001123,2]
[348265615,1736425857215,-150.0,0.0001123,2]
[348265616,1736425857224,-642.731,0.0001123,2]
[348265617,1736425857234,-6002.768,0.0001123,2]
[348265618,1736425857244,-215.70268658,0.000113,2]
[348265619,1736425857253,-771.75,0.00011342,2]
[348265620,1736425857263,-878.17,0.00011342,2]
[348265621,1736425857273,-437.83,0.00011342,2]
[348265622,1736425857284,-1208.36,0.00011342,2]